bitfinex/quotes_ETHUSD_20220213
["timestamp","ask_amount","ask_price","bid_price","bid_amount"]
[1644769357684,1.16576422,2902.3,2901.7,1.46162]
[1644769357885,0.1296,2902.2,2901.7,1.46162]
[1644769358087,0.1296,2902.2,2901.7,0.86162]
[1644769358088,0.01136484,2902.1,2901.7,0.86162]
[1644769358285,0.01136484,2902.1,2901.5,3.74656]
[1644769358488,0.01136484,2902.1,2901.5,3.44656]
[1644769358886,0.1336,2902.2,2901.5,3.44656]
[1644769359087,0.1328,2902.2,2901.5,3.44656]
[1644769359288,0.01136458,2902.1,2901.5,3.44656]
[1644769359687,0.01136458,2902.1,2901.6,0.3]
[1644769360091,0.1312,2902.2,2901.6,1.1617]
[1644769360330,0.01136471,2902.1,2901.7,0.86169]
[1644769361335,0.1288,2902.2,2901.7,0.86169]
[1644769361539,0.01136484,2902.1,2901.7,1.46169]
[1644769362435,0.01136484,2902.1,2901.7,0.6]
[1644769362638,0.1312,2902.2,2901.7,0.6]
[1644769362836,0.01136484,2902.1,2901.7,0.3]
[1644769363038,0.01136484,2902.1,2901.5,3.44644]
[1644769363837,0.1296,2902.2,2901.6,0.07331341]
[1644769363838,0.132,2902.2,2901.6,0.07331341]
[1644769364082,0.01136458,2902.1,2901.6,0.07331341]
[1644769364281,0.01136458,2902.1,2901.5,2.75726]
[1644769364883,0.132,2902.2,2901.5,2.75726]
[1644769365087,0.132,2902.2,2901.6,0.37331621]
[1644769365288,0.01136458,2902.1,2901.5,1.72322]
[1644769365484,0.01136458,2902.1,2901.6,0.07831784]
[1644769365684,0.01136458,2902.1,2901.6,0.37831784]
[1644769365887,0.01136458,2902.1,2901.6,1.1617]
[1644769366085,0.1552,2902.6,2901.7,0.86166]
[1644769366284,0.29206534,2902.9,2901.7,0.86166]
[1644769366285,0.1672,2902.8,2901.7,0.86166]
[1644769366486,0.01136471,2902.1,2901.7,0.86166]
[1644769367090,0.01136471,2902.1,2901.6,0.3]
[1644769367289,0.98657272,2902.2,2901.5,3.74647]
[1644769367490,0.98657272,2902.2,2901.6,0.07331434]
[1644769367727,0.01136484,2902.1,2901.6,0.07331434]
[1644769368328,0.01136484,2902.1,2901.5,3.44647]
[1644769368530,0.86183,2902.1,2901.6,0.07331701]
[1644769368728,0.14238161,2901.5,2901.3,1.2289]
[1644769368928,0.14238161,2901.5,2901.1,1.72362]
[1644769369128,0.14238161,2901.5,2901.2,0.07332304]
[1644769369530,0.14238161,2901.5,2901.3,0.07332304]
[1644769370731,0.14238161,2901.5,2901.3,1.79683304]
[1644769370932,0.14238161,2901.5,2901.4,0.07332304]
[1644769371784,0.14106446,2901.5,2901.4,0.07332304]
[1644769371982,0.14106446,2901.5,2901.0,1.72371]
[1644769372188,0.14106446,2901.5,2900.8,5.32956]
[1644769372189,0.14106446,2901.5,2901.1,0.07332444]
[1644769372484,0.14106446,2901.5,2900.8,5.32956]
[1644769372683,0.14106446,2901.5,2900.9,0.07332616]
[1644769373284,0.14106446,2901.5,2901.1,1.7238]
[1644769373486,0.14106446,2901.5,2901.2,0.07332616]
[1644769373884,0.14106446,2901.5,2901.2,0.37332616]
[1644769374087,0.14106446,2901.5,2901.3,0.07332616]
[1644769374384,0.14106446,2901.5,2901.4,0.07332616]
[1644769375737,0.16752817,2901.5,2901.4,0.07332616]
[1644769376634,0.14112817,2901.5,2901.4,2.91837287]
[1644769376834,0.04543863,2902.0,2901.4,0.07332616]
[1644769377037,0.1723,2902.8,2901.4,3.46566616]
[1644769377234,0.04543863,2902.0,2901.5,1.27768651]
[1644769377434,0.04543863,2902.0,2901.6,1.60408616]
[1644769377833,0.04543863,2902.0,2901.7,0.07332616]
[1644769378033,0.04543863,2902.0,2901.8,0.497]
[1644769378238,1.00097296,2902.7,2901.8,0.797]
[1644769378534,0.01136031,2902.1,2901.8,0.797]
[1644769379183,0.01136031,2902.1,2901.8,1.65846]
[1644769379389,1.00097296,2902.7,2901.8,2.65846]
[1644769379591,0.01136044,2902.1,2901.8,2.65846]
[1644769380492,3.6296,2902.6,2901.7,0.86147]
[1644769380689,3.6296,2902.6,2901.4,0.57180296]
[1644769380690,0.01221654,2902.2,2901.4,0.01588068]
[1644769380893,0.86203,2901.7,2901.4,0.01588068]
[1644769381189,0.1723,2901.8,2901.4,0.01588068]
[1644769381190,0.95424894,2901.8,2901.4,0.01588068]
[1644769381394,1.81627894,2901.8,2901.4,0.01588068]
[1644769381789,0.90424894,2901.8,2901.4,0.87770068]
[1644769381988,0.90424894,2901.8,2901.4,0.01588068]
[1644769382390,0.1723,2901.7,2901.4,0.01588068]
[1644769383644,0.86193,2901.6,2901.4,0.01588068]
[1644769385243,0.1723,2901.5,2901.4,0.01588068]
[1644769385442,0.86188,2901.7,2901.4,0.01588068]
[1644769385644,0.00825888,2901.9,2900.6,2.4689]
[1644769385947,0.00825888,2901.9,2900.8,1.72372]
[1644769386143,0.00825888,2901.9,2900.9,0.3]
[1644769386344,0.90212217,2901.8,2901.1,0.86188]
[1644769386586,0.90212217,2901.8,2901.2,0.86184]
[1644769387085,0.1723,2901.7,2901.2,0.86184]
[1644769387392,0.1723,2901.7,2900.9,0.3]
[1644769388088,0.1723,2901.7,2901.1,0.8619]
[1644769388688,0.1723,2901.7,2900.6,1.1689]
[1644769388890,3.50825888,2901.9,2900.5,1.41261292]
[1644769388891,1.46648778,2901.6,2900.5,1.41261292]
[1644769389090,0.86202,2901.4,2900.5,0.26811292]
[1644769389287,0.1723,2901.3,2900.5,0.01811292]
[1644769389487,0.1723,2901.4,2900.5,0.01811292]
[1644769389688,0.6693,2901.8,2900.5,0.01811292]
[1644769389891,1.46649823,2901.7,2900.5,3.51811292]
[1644769390090,1.46649823,2901.7,2900.5,4.38015292]
[1644769390641,0.1223,2901.8,2901.4,0.01811433]
[1644769390840,0.99830063,2901.7,2901.4,0.01811433]
[1644769391441,1.86020063,2901.7,2901.4,0.01811433]
[1644769392143,0.02347559,2901.3,2900.8,4.92014768]
[1644769392342,0.02347559,2901.3,2900.9,1.35893]
[1644769392543,0.02347559,2901.3,2901.0,0.1723]
[1644769392742,0.02347559,2901.3,2901.0,3.45545831]
[1644769393142,0.02347559,2901.3,2901.0,3.75545831]
[1644769393343,0.02347559,2901.3,2901.0,0.4723]
[1644769393544,0.02347559,2901.3,2901.0,0.1723]
[1644769394002,0.02347559,2901.3,2901.0,1.89599]
[1644769394393,0.02347559,2901.3,2901.0,2.89599]
[1644769394594,0.02347559,2901.3,2901.1,1.0]
[1644769394796,0.02347559,2901.3,2901.0,2.89599]
[1644769395094,0.02347559,2901.3,2901.1,0.86182]
[1644769395295,0.02347559,2901.3,2901.1,2.16182]
[1644769395694,0.02347559,2901.3,2901.1,3.02364]
[1644769395893,0.02347559,2901.3,2901.0,0.1723]
[1644769396495,0.02347559,2901.3,2900.6,0.25]
[1644769396695,1.46654287,2901.2,2900.2,0.1723]
[1644769396894,1.12866369,2900.9,2900.2,0.1723]
[1644769397094,1.12866369,2900.9,2900.3,0.86213]
[1644769397295,1.12866369,2900.9,2900.1,1.1483]
[1644769397495,1.12866369,2900.9,2900.0,7.47]
[1644769397496,1.6390413,2900.8,2900.0,7.47]
[1644769397735,0.1723,2900.8,2900.0,7.47]
[1644769397935,0.86236,2900.6,2900.0,7.43096145]
[1644769398135,0.86236,2900.6,2900.0,0.88104298]
[1644769398136,2.96643,2900.6,2900.0,0.88104298]
[1644769398336,2.10407,2900.6,2900.0,0.01096145]
[1644769398739,2.10407,2900.6,2899.6,8.89439971]
[1644769398740,2.10407,2900.6,2899.7,0.00179971]
[1644769398937,2.60107,2900.6,2899.7,0.00179971]
[1644769399135,1.01066234,2899.9,2899.7,0.00179971]
[1644769399336,2.60107,2900.6,2899.6,7.47]
[1644769399337,0.86246,2900.3,2899.6,7.47]
[1644769399536,0.86246,2900.3,2899.7,0.00179971]
[1644769400040,0.797,2900.2,2899.7,0.00179971]
[1644769400338,1.72528,2900.0,2899.7,0.00179971]
[1644769400537,1.72528,2900.0,2899.3,0.00179971]
[1644769400538,0.86268,2899.8,2899.3,0.00179971]
[1644769400736,0.85415747,2899.6,2899.3,0.00179971]
[1644769400936,0.497,2899.5,2899.2,0.1723]
[1644769401137,0.6694,2899.5,2899.2,0.1723]
[1644769401597,0.6694,2899.5,2899.3,0.01134004]
[1644769401792,9.6393,2900.2,2899.3,0.01134004]
[1644769401793,0.1724,2900.0,2899.3,0.01134004]
[1644769401991,0.1724,2900.0,2899.3,0.01313975]
[1644769402392,0.1724,2900.0,2899.3,0.00179971]
[1644769402592,0.8626,2900.0,2899.5,0.01133977]
[1644769402792,0.86274,2899.8,2899.5,0.01133977]
[1644769402991,0.1724,2899.7,2899.5,0.01133977]
[1644769403193,3.93360534,2899.9,2899.5,0.01133977]
[1644769403194,0.1724,2899.8,2899.5,0.01133977]
[1644769403592,1.14164907,2899.0,2898.6,0.00179971]
[1644769403793,1.14164907,2899.0,2898.6,0.86437971]
[1644769403996,1.14164907,2899.0,2898.4,0.00179971]
[1644769404891,1.14164907,2899.0,2898.6,0.01134107]
[1644769405096,0.86278,2898.9,2898.6,0.01134107]
[1644769405936,0.86278,2898.9,2897.7,0.00179971]
[1644769406140,3.2454,2899.2,2898.2,0.04537083]
[1644769406141,0.9744046,2898.3,2898.2,0.04537083]
[1644769407138,0.9744046,2898.3,2897.7,0.00179971]
[1644769407340,0.9744046,2898.3,2898.1,0.01134169]
[1644769408440,0.9744046,2898.3,2898.1,0.01134176]
[1644769409101,0.1724,2899.1,2898.1,0.01134176]
[1644769409298,3.2454,2899.2,2898.1,0.01134176]
[1644769409502,3.2454,2899.2,2897.9,1.72536]
[1644769409699,0.1724,2899.5,2898.5,0.01134121]
[1644769409901,1.1716418,2899.1,2898.5,0.01134121]
[1644769410103,0.1724,2899.5,2898.5,0.01314092]
[1644769410300,0.1724,2899.6,2898.5,0.01134121]
[1644769410501,3.0031,2899.8,2898.5,0.01134121]
[1644769410502,0.1724,2899.7,2898.5,0.01134121]
[1644769410700,0.1724,2899.7,2898.2,0.0173488]
[1644769410901,0.86263,2899.6,2898.9,0.01134059]
[1644769411101,0.91585359,2899.1,2898.9,0.01134059]
[1644769412000,0.91585359,2899.1,2898.5,0.00179971]
[1644769412201,0.86263,2899.6,2898.9,0.01134066]
[1644769412401,0.1724,2899.7,2898.9,0.01134066]
[1644769412601,0.1724,2900.0,2898.9,0.01134066]
[1644769413137,1.18988535,2899.5,2898.8,0.00179971]
[1644769413540,1.18988535,2899.5,2899.3,0.01134004]
[1644769413740,1.03492,2900.0,2899.3,0.01134004]
[1644769414147,0.1724,2900.0,2899.3,0.01134004]
[1644769414344,0.1724,2900.0,2898.9,1.72472]
[1644769414543,8.0389,2900.7,2898.9,1.72472]
[1644769414544,0.1724,2900.6,2899.4,0.86232]
[1644769414740,0.1724,2900.6,2899.5,3.49191306]
[1644769414741,0.92763849,2900.1,2899.5,3.49191306]
[1644769414939,0.92763849,2900.1,2899.6,0.00179971]
[1644769416040,0.92763849,2900.1,2899.7,0.01133949]
[1644769416242,1.03472,2900.6,2899.7,0.01133949]
[1644769416492,0.1724,2900.6,2899.7,0.01133949]
[1644769416695,0.1724,2900.6,2898.8,0.25]
[1644769416696,0.02969623,2899.6,2898.8,0.25]
[1644769416896,0.02969623,2899.6,2897.7,1.37952111]
[1644769416897,0.01236672,2899.2,2897.7,1.37952111]
[1644769417094,0.497,2899.1,2897.9,0.25]
[1644769417293,0.497,2899.1,2897.7,0.8617]
[1644769417294,1.35992,2899.1,2897.7,0.8617]
[1644769417492,1.35992,2899.1,2897.2,0.38819997]
[1644769417493,0.1724,2899.0,2897.2,0.38819997]
[1644769417693,0.92376594,2898.3,2897.2,0.38819997]
[1644769417895,0.497,2898.6,2897.2,1.25115997]
[1644769418194,0.497,2898.6,2897.2,0.38819997]
[1644769418394,0.1724,2898.5,2897.2,0.38819997]
[1644769418695,0.497,2898.9,2897.2,0.38819997]
[1644769418897,1.72589,2898.8,2897.2,0.38819997]
[1644769419295,0.94701119,2898.6,2897.2,0.38819997]
[1644769419499,0.86293,2898.4,2897.3,0.86291]
[1644769419795,0.86293,2898.4,2897.2,1.68819997]
[1644769419995,0.86293,2898.4,2897.2,0.68819997]
[1644769420240,0.86293,2898.4,2897.2,1.68819997]
[1644769420638,0.86293,2898.4,2897.7,0.01134744]
[1644769421043,4.37395822,2898.9,2897.7,0.01134744]
[1644769421044,0.1724,2899.1,2897.7,0.01134744]
[1644769421542,0.1724,2899.1,2897.7,0.497]
[1644769421742,0.1724,2899.1,2897.7,5.497]
[1644769421940,0.01134197,2899.4,2898.3,0.01134663]
[1644769422145,0.01134197,2899.4,2898.5,0.86257]
[1644769422342,0.01134197,2899.4,2898.6,0.3]
[1644769422541,0.87398197,2899.4,2898.6,0.3]
[1644769422740,1.00744,2899.4,2898.3,2.02514]
[1644769422941,0.1472,2899.3,2898.9,0.01134581]
[1644769423141,0.3228,2899.3,2898.9,0.01134581]
[1644769423340,0.326,2899.3,2898.9,0.01134581]
[1644769423543,1.00993,2899.2,2898.9,0.01134581]
[1644769423740,1.00833,2899.2,2898.9,0.01134581]
[1644769423996,1.00833,2899.2,2898.1,0.99630607]
[1644769423997,0.1304,2899.2,2898.1,0.99630607]
[1644769424192,0.1344,2899.1,2898.9,0.00394387]
[1644769424491,0.152,2899.2,2898.9,0.00394387]
[1644769424695,5.86266,2899.0,2897.7,0.25]
[1644769424892,5.01273771,2898.3,2897.1,0.8617]
[1644769425089,5.01273771,2898.3,2896.5,3.4217]
[1644769425090,1.72625,2897.9,2896.5,3.4217]
[1644769425290,1.72625,2897.9,2896.2,6.2687]
[1644769425291,0.414,2897.8,2896.2,6.2687]
[1644769425490,0.5864,2897.8,2896.1,0.39045331]
[1644769425690,1.44953,2897.8,2896.4,1.19182025]
[1644769425892,3.17584,2897.8,2896.4,1.19182025]
[1644769426089,1.44957,2897.8,2896.4,1.19182025]
[1644769426289,1.44957,2897.8,2896.1,0.39045331]
[1644769427092,0.8632,2897.4,2896.1,2.11685331]
[1644769427295,0.86322,2897.6,2896.1,0.39045331]
[1644769427296,3.67587782,2897.3,2896.1,0.39045331]
[1644769427490,0.414,2897.6,2896.1,0.39045331]
[1644769427491,0.1726,2897.4,2896.1,0.39045331]
[1644769427752,0.0812,2897.2,2896.1,0.39045331]
[1644769427938,4.22516116,2897.5,2896.1,0.39045331]
[1644769427939,0.1368,2897.3,2896.1,0.39045331]
[1644769428138,1.03582,2897.2,2896.1,0.39045331]
[1644769428338,0.1376,2897.4,2896.1,0.39045331]
[1644769428538,0.414,2897.6,2896.1,0.39045331]
[1644769428539,0.1304,2897.3,2896.1,0.39045331]
[1644769428739,1.11676063,2897.5,2896.1,0.39045331]
[1644769428941,0.1352,2897.4,2896.6,0.00393219]
[1644769429139,0.1368,2897.4,2896.6,0.00393219]
[1644769429346,0.86324,2897.2,2896.6,0.00393219]
[1644769429742,0.99844,2897.2,2896.6,0.00393219]
[1644769429946,0.99844,2897.2,2896.3,0.1725]
[1644769429947,0.99604,2897.2,2896.3,0.1725]
[1644769430143,1.03584,2897.2,2896.3,0.02173464]
[1644769430445,1.03584,2897.2,2896.8,0.01135894]
[1644769430446,0.1726,2897.2,2896.8,0.01135894]
[1644769431143,0.1726,2897.2,2896.4,0.08395894]
[1644769431601,4.9,2897.1,2895.7,1.0]
[1644769431798,4.9,2897.1,2895.2,1.1117]
[1644769431799,0.01248147,2896.2,2895.2,1.1117]
[1644769431995,0.01248147,2896.2,2895.2,0.8617]
[1644769431996,0.414,2896.1,2895.2,0.8617]
[1644769432197,0.5866,2896.1,2895.2,0.8617]
[1644769432397,0.8866,2896.1,2895.2,0.8617]
[1644769432600,0.414,2896.1,2895.3,0.00169406]
[1644769432797,0.86376,2896.0,2895.3,0.00169406]
[1644769433799,0.86376,2896.0,2895.5,0.00375466]
[1644769434097,1.91943991,2896.0,2895.5,0.00375466]
[1644769434699,1.91943991,2896.0,2894.9,0.00169406]
[1644769435103,1.91943991,2896.0,2895.6,0.01123774]
[1644769435546,0.86376,2896.0,2895.6,0.01123774]
[1644769435955,0.21973654,2896.9,2894.9,0.86354]
[1644769436147,0.8625,2897.5,2895.9,5.0]
[1644769436148,1.0351,2897.5,2895.9,5.0]
[1644769436347,0.01123422,2896.5,2896.3,5.0]
[1644769436547,3.422e-05,2896.5,2896.4,3.92635172]
[1644769436748,3.422e-05,2896.5,2896.4,24.29844301]
[1644769436946,3.422e-05,2896.5,2896.4,1.59844301]
[1644769437147,0.8629,2897.8,2896.4,1.414]
[1644769437346,5.18471949,2898.8,2896.5,0.00169377]
[1644769437347,0.1724,2898.0,2896.5,0.00169377]
[1644769437547,0.17465334,2898.7,2896.5,0.00169377]
[1644769437751,1.04911714,2898.1,2896.9,0.6223494]
[1644769437950,0.1724,2898.0,2896.6,0.05733386]
[1644769438349,0.1724,2898.0,2896.3,4.1]
[1644769438549,0.88840819,2897.5,2896.3,4.1]
[1644769438749,0.88840819,2897.5,2896.3,0.3]
[1644769438994,0.88840819,2897.5,2896.2,3.5]
[1644769439194,0.1726,2897.4,2896.1,4.2941]
[1644769439396,0.1726,2897.4,2896.2,1.0]
[1644769439594,0.1726,2897.4,2896.1,4.2941]
[1644769439794,0.1726,2897.4,2896.4,0.86328]
[1644769440001,0.00748756,2896.9,2896.4,0.88116453]
[1644769440894,0.1726,2897.2,2896.5,0.86325]
[1644769441095,0.01136324,2896.8,2896.4,0.88116453]
[1644769441296,0.01136324,2896.8,2896.4,0.01788453]
[1644769442199,0.01136331,2896.7,2896.4,0.01788453]
[1644769442395,0.01136331,2896.7,2896.5,2.58937]
[1644769442596,0.01136331,2896.7,2896.5,1.72629]
[1644769442848,6.331e-05,2896.7,2896.6,8.8]
[1644769443051,6.331e-05,2896.7,2896.6,24.414]
[1644769443246,0.1416,2898.2,2896.6,1.714]
[1644769443447,0.3324,2898.2,2896.8,1.72618]
[1644769443647,0.3428,2898.2,2896.8,1.72618]
[1644769443848,0.1616,2898.1,2896.8,1.72618]
[1644769444046,0.1724,2898.0,2896.8,3.4523]
[1644769444247,0.144,2898.1,2896.9,1.03549]
[1644769444447,0.1408,2898.1,2897.1,1.72584]
[1644769444652,2.9,2897.4,2896.4,0.01788453]
[1644769444850,2.9,2897.4,2895.0,1.07416329]
[1644769444851,0.012768,2896.8,2895.0,1.07416329]
[1644769445048,0.012768,2896.8,2894.8,3.139]
[1644769445049,0.01254285,2896.2,2894.8,3.139]
[1644769445249,1.0936449,2896.3,2894.8,0.8629]
[1644769445448,6.0,2897.3,2894.9,1.7272]
[1644769445449,1.72726,2897.1,2894.9,1.7272]
[1644769445654,2.14126,2897.1,2895.0,0.00169391]
[1644769445850,0.01086636,2896.8,2895.4,0.01087176]
[1644769446350,0.01086636,2896.8,2895.5,0.86344]
[1644769446592,0.01086636,2896.8,2895.7,0.86333]
[1644769446795,3.6726,2897.7,2895.7,0.86333]
[1644769446796,0.3238,2897.7,2895.8,0.41569391]
[1644769446989,0.1384,2897.6,2895.8,0.58829391]
[1644769447191,0.0108678,2896.8,2896.0,0.01087096]
[1644769447389,0.0108678,2896.8,2896.1,0.1726]
[1644769447591,0.0108678,2896.8,2896.2,0.86327]
[1644769447791,0.0108678,2896.8,2896.3,0.1726]
[1644769448090,1.84781009,2897.6,2896.3,0.1726]
[1644769448091,0.1296,2897.5,2896.3,0.1726]
[1644769448298,0.01086865,2896.8,2896.4,0.01087049]
[1644769448693,0.01086865,2896.8,2896.4,21.93720049]
[1644769448895,0.01086865,2896.8,2896.6,0.3]
[1644769449094,0.01086865,2896.8,2896.7,0.414]
[1644769449293,0.1726,2898.3,2896.7,0.414]
[1644769449493,0.01086913,2896.8,2896.7,0.414]
[1644769449696,0.01086913,2896.8,2896.6,0.86307]
[1644769449899,0.01086913,2896.8,2896.7,0.3]
[1644769450542,0.1726,2898.1,2896.7,0.3]
[1644769450543,0.1464,2898.0,2896.7,0.3]
[1644769450744,0.01070504,2896.9,2896.8,0.3]
[1644769450947,0.01070504,2896.9,2896.8,21.5]
[1644769451547,0.01070504,2896.9,2896.8,26.8]
[1644769451548,5.04e-06,2896.9,2896.8,26.8]
[1644769451744,0.1726,2898.3,2897.2,0.3]
[1644769451944,0.1726,2898.3,2897.3,0.86287]
[1644769452145,0.1726,2898.3,2897.2,0.6]
[1644769452343,0.1726,2898.3,2897.2,0.3]
[1644769452544,0.1726,2898.3,2897.1,3.43973]
[1644769452545,0.3038,2898.3,2897.1,3.73973]
[1644769452743,0.1724,2898.6,2897.1,3.73973]
[1644769452943,1.46852043,2898.5,2897.4,0.86293]
[1644769453143,0.1724,2898.4,2897.4,0.86293]
[1644769453342,0.1224,2898.4,2897.4,1.86293]
[1644769453546,1.05931865,2898.3,2897.5,0.00169322]
[1644769453743,1.06091865,2898.3,2897.5,0.00169322]
[1644769453989,0.1312,2898.3,2897.5,0.00169322]
[1644769454192,0.01139216,2898.0,2897.5,0.00169322]
[1644769454591,0.01139216,2898.0,2897.6,1.27692]
[1644769454794,0.01139216,2898.0,2897.6,2.57692]
[1644769455095,0.01139216,2898.0,2897.6,3.02565]
[1644769455294,0.93709029,2898.2,2897.6,1.72565]
[1644769455493,0.93709029,2898.2,2897.3,0.00169322]
[1644769455494,0.90530115,2897.6,2897.3,0.00169322]
[1644769455692,0.0112607,2897.9,2897.0,0.00340272]
[1644769455894,0.0112607,2897.9,2897.1,0.00169322]
[1644769456095,0.0112607,2897.9,2897.0,0.0017095]
[1644769456096,0.1836607,2897.9,2897.2,1.72597]
[1644769456292,0.1836607,2897.9,2897.3,0.00169322]
[1644769456493,0.1724,2897.9,2897.3,0.00169322]
[1644769456694,0.01126103,2897.7,2897.3,0.00169322]
[1644769456896,0.01126103,2897.7,2897.0,0.0017095]
[1644769457496,0.01126103,2897.7,2897.0,0.00340272]
[1644769457737,0.02723418,2898.3,2897.0,0.00340272]
[1644769457943,0.01126129,2897.5,2897.0,0.00340272]
[1644769458139,0.01126129,2897.5,2897.1,0.863]
[1644769458340,0.01126129,2897.5,2897.0,0.86651272]
[1644769458341,0.70003895,2897.0,2896.7,0.25]
[1644769458539,0.70003895,2897.0,2896.6,3.3181646]
[1644769458741,0.70003895,2897.0,2896.6,1.7375546]
[1644769458940,0.70003895,2897.0,2896.6,1.72629]
[1644769459139,0.70003895,2897.0,2896.6,21.93768483]
[1644769459140,0.7114322,2897.0,2896.6,21.93768483]
[1644769459342,0.7114322,2897.0,2896.6,1.73768483]
[1644769459539,0.7114322,2897.0,2896.7,1.6]
[1644769459739,0.7114322,2897.0,2896.7,1.46305]
[1644769459938,0.7114322,2897.0,2896.7,2.46305]
[1644769460140,0.7114322,2897.0,2896.7,1.6]
[1644769460141,0.70003895,2897.0,2896.7,1.6]
[1644769460441,0.71143233,2897.0,2896.7,0.7726]
[1644769460639,0.71143233,2897.0,2896.7,1.6]
[1644769461248,0.71143233,2897.0,2896.7,0.6]
[1644769461249,0.70003895,2897.0,2896.7,0.6]
[1644769461497,0.71143233,2897.0,2896.8,0.86314]
[1644769461889,0.71143233,2897.0,2896.8,1.16314]
[1644769462491,0.70003895,2897.0,2896.8,1.33554]
[1644769462692,0.01139351,2897.0,2896.9,20.2]
[1644769462892,0.01139351,2897.0,2896.9,26.3724]
[1644769463094,0.01139351,2897.0,2896.6,0.01308871]
[1644769463293,0.01252731,2896.8,2896.6,0.01308871]
[1644769463591,0.02696312,2897.7,2896.0,0.0472836]
[1644769463793,0.96712046,2896.8,2896.2,0.86335]
[1644769463990,3.5,2897.5,2896.6,0.00390594]
[1644769464191,0.1726,2897.3,2896.6,0.00390594]
[1644769464494,0.02696312,2897.7,2896.6,0.00390594]
[1644769464495,0.1724,2897.5,2896.6,0.00390594]
[1644769464691,0.1724,2897.3,2896.6,0.00390594]
[1644769464890,0.1724,2897.3,2896.6,0.00169362]
[1644769464891,0.86333,2897.3,2896.6,0.00169362]
[1644769465090,1.03573,2897.3,2896.6,0.00390582]
[1644769465340,0.02669193,2897.0,2896.6,0.00390582]
[1644769465742,0.02669193,2897.0,2896.6,1.73019582]
[1644769466040,0.02669193,2897.0,2896.7,0.86309]
[1644769466241,0.03809021,2897.0,2896.7,0.86309]
[1644769466547,0.03809021,2897.0,2896.6,1.73768987]
[1644769467341,0.02669193,2897.0,2896.6,1.72629]
[1644769467541,0.02669193,2897.0,2896.6,0.87460987]
[1644769467542,0.03809021,2897.0,2896.6,0.87460987]
[1644769467940,0.03809021,2897.0,2896.6,21.07460987]
[1644769468143,3.72427797,2897.9,2896.8,20.2]
[1644769468144,0.1726,2897.9,2896.8,20.2]
[1644769468348,0.1726,2897.9,2896.7,0.6]
[1644769468349,1.46863248,2897.8,2896.7,1.60169362]
[1644769468641,0.1724,2898.2,2896.7,1.60169362]
[1644769468642,1.46863248,2897.7,2896.9,1.7259]
[1644769468841,1.46863248,2897.7,2897.0,0.60169362]
[1644769469095,1.46863248,2897.7,2896.8,0.30169362]
[1644769469297,1.46863248,2897.6,2896.8,0.60169362]
[1644769469492,0.98678426,2897.8,2897.2,0.86306]
[1644769469493,1.46863248,2897.5,2897.2,0.86306]
[1644769469692,1.46863248,2897.4,2897.2,0.86306]
[1644769469893,0.98678426,2897.8,2897.2,0.86306]
[1644769470092,1.46867539,2897.7,2897.2,0.86306]
[1644769470295,1.46867539,2897.7,2897.2,1.16306]
[1644769470594,2.56524223,2898.5,2897.2,1.16306]
[1644769470595,0.1724,2898.1,2897.4,1.72573]
[1644769470792,1.46858731,2898.0,2897.5,0.3]
[1644769470992,4.3024,2898.8,2897.5,0.3]
[1644769470993,1.46858731,2897.9,2897.5,0.3]
[1644769471198,1.46858731,2897.8,2897.5,0.3]
[1644769471499,0.80177917,2898.7,2897.7,5.0]
[1644769471697,0.8633,2898.9,2898.0,21.0624]
[1644769471698,0.62937917,2898.8,2898.0,21.0624]
[1644769471892,1.0357,2898.9,2898.2,20.2]
[1644769471893,1.49267917,2898.9,2898.2,20.2]
[1644769472092,1.25875834,2899.5,2898.2,20.2]
[1644769472093,0.62937917,2899.2,2898.2,20.2]
[1644769472298,0.31537483,2898.6,2898.1,0.32476305]
[1644769472494,0.31537483,2898.6,2897.7,0.25]
[1644769472740,0.31537483,2898.6,2897.3,2.72555]
[1644769472741,0.01293692,2897.9,2897.3,0.86302]
[1644769472940,0.01293692,2897.9,2896.9,3.566]
[1644769473146,0.01278387,2898.8,2896.9,3.566]
[1644769473342,0.01278387,2898.8,2897.0,0.414]
[1644769473541,0.01278387,2898.8,2897.0,3.33052322]
[1644769473542,0.87564387,2898.8,2897.0,3.33052322]
[1644769473741,0.87564387,2898.8,2897.3,1.72556]
[1644769473941,0.98534898,2898.7,2897.5,0.8632]
[1644769474141,0.98534898,2898.7,2897.5,0.3]
[1644769474345,0.98534898,2898.7,2897.5,0.6]
[1644769474543,0.98534898,2898.7,2897.1,1.0]
[1644769474743,0.86294,2898.6,2897.3,1.7258]
[1644769474944,3.5,2899.0,2897.4,0.86293]
[1644769474945,4.36287,2899.0,2897.4,0.86293]
[1644769475144,3.5,2899.0,2898.1,0.01908352]
[1644769475345,0.1724,2898.9,2898.1,0.01908352]
[1644769475544,0.1724,2899.3,2898.1,0.01908352]
[1644769475748,0.1724,2899.4,2898.1,0.88173352]
[1644769475947,0.20209623,2899.6,2898.5,0.8632]
[1644769476144,0.20209623,2899.6,2898.4,2.58725]
[1644769476145,0.01140082,2898.6,2898.4,2.58725]
[1644769476345,0.01140082,2898.6,2898.5,0.6]
[1644769476604,0.01140082,2898.6,2898.5,1.6]
[1644769477003,0.02969623,2899.6,2898.4,2.58725]
[1644769477200,0.02969623,2899.6,2898.3,0.86265]
[1644769477201,0.01140075,2898.7,2898.3,0.86265]
[1644769477405,0.01140075,2898.7,2898.3,1.16265]
[1644769477600,0.01140075,2898.7,2898.4,0.3]
[1644769477801,0.01140075,2898.7,2898.5,25.614]
[1644769477999,0.01140075,2898.7,2898.5,5.414]
[1644769478199,0.02969623,2899.6,2898.8,0.86228]
[1644769478401,0.07528559,2899.6,2899.0,0.86228]
[1644769478599,0.07528559,2899.6,2899.0,1.16228]
[1644769478803,0.07528559,2899.6,2899.3,20.2]
[1644769479000,0.07528559,2899.6,2899.4,5.71632903]
[1644769479200,0.07528559,2899.6,2899.5,3.59389199]
[1644769479400,0.02969623,2899.6,2899.5,3.59389199]
[1644769479606,0.0114957,2899.6,2899.5,1.6]
[1644769479802,0.04559103,2900.1,2899.5,1.6]
[1644769479803,0.04559103,2900.1,2899.7,20.2]
[1644769480003,0.04559103,2900.1,2899.8,0.414]
[1644769480241,0.04559103,2900.1,2899.7,21.06212]
[1644769480242,0.04559103,2900.1,2899.7,0.86213]